bitfinex-derivatives/quotes_SOLF0:USTF0_20251018
["timestamp","ask_amount","ask_price","bid_price","bid_amount"]
[1760775368799,1.81659911,186.64,186.59,4.822]
[1760775369302,2.78,186.63,186.59,7.422]
[1760775369500,2.78,186.63,186.6,2.6]
[1760775369696,2.78,186.63,186.59,4.822]
[1760775369897,1.81659911,186.64,186.59,4.822]
[1760775370297,2.78,186.63,186.6,4.8217]
[1760775370505,8.97903623,186.68,186.61,2.6]
[1760775370506,1.81659911,186.66,186.61,2.6]
[1760775370803,11.72593595,186.65,186.61,2.6]
[1760775371001,4.16770103,186.64,186.61,2.6]
[1760775371304,2.84,186.68,186.61,2.64]
[1760775371494,2.84,186.66,186.63,2.64]
[1760775371897,1.81659911,186.67,186.6,1.81659911]
[1760775372101,4.16961647,186.66,186.6,1.81659911]
[1760775372303,2.84,186.64,186.58,4.45659911]
[1760775372703,2.84,186.64,186.58,1.81659911]
[1760775372896,7.661,186.64,186.56,6.63939911]
[1760775373100,2.84,186.63,186.56,1.81659911]
[1760775373302,2.84,186.63,186.55,47.26]
[1760775373503,4.65659911,186.63,186.55,4.45659911]
[1760775373910,2.84,186.6,186.51,2.64]
[1760775374207,2.84,186.6,186.54,4.8233]
[1760775374614,2.84,186.6,186.54,6.63989911]
[1760775375113,2.84,186.6,186.54,4.8233]
[1760775375311,1.81659911,186.59,186.53,2.64]
[1760775377117,1.81659911,186.59,186.53,7.4636]
[1760775377619,4.65659911,186.59,186.53,7.4636]
[1760775377815,9.47889911,186.59,186.53,2.64]
[1760775378812,9.47889911,186.59,186.52,4.8237]
[1760775379021,9.47889911,186.59,184.98,86.79166161]
[1760775379022,2.84,186.56,186.5,2.64]
[1760775379221,1.81659911,186.55,186.5,2.64]
[1760775379920,2.84,186.54,186.5,2.64]
[1760775380122,2.84,186.54,186.5,7.4644]
[1760775381030,1.81659911,186.55,186.5,7.4644]
[1760775381315,2.84,186.54,186.5,2.64]
[1760775381520,2.84,186.54,186.47,9.28159911]
[1760775384721,1.81659911,186.53,186.47,2.64]
[1760775384915,2.84,186.52,186.45,1.81659911]
[1760775386713,2.84,186.59,186.51,2.64]
[1760775386918,2.84,186.61,186.54,1.81659911]
[1760775387112,1.81659911,186.62,186.54,1.81659911]
[1760775387113,4.15801357,186.6,186.54,1.81659911]
[1760775387320,2.84,186.58,186.54,1.81659911]
[1760775387726,2.84,186.57,186.54,1.81659911]
[1760775388020,2.84,186.57,186.54,4.45659911]
[1760775389523,2.84,186.61,186.54,1.81659911]
[1760775389723,4.15585058,186.6,186.54,1.81659911]
[1760775389914,2.84,186.58,186.55,2.64]
[1760775390613,2.84,186.61,186.55,2.64]
[1760775390818,4.15768143,186.6,186.54,4.45659911]
[1760775391126,4.15768143,186.59,186.55,2.64]
[1760775391325,4.8217,186.61,186.55,2.64]
[1760775391326,2.84,186.58,186.55,2.64]
[1760775393722,2.84,186.61,186.56,1.81659911]
[1760775394127,2.84,186.64,186.58,4.45659911]
[1760775394432,8.87252313,186.63,186.6,4.45659911]
[1760775394626,4.1648029,186.62,186.61,2.64]
[1760775394827,2.84,186.65,186.61,4.45659911]
[1760775395026,4.16733742,186.64,186.61,1.81659911]
[1760775395229,4.16733742,186.63,186.62,2.64]
[1760775395435,12.6011589,186.68,186.62,9.27789911]
[1760775395726,11.71315926,186.67,186.63,2.64]
[1760775395922,8.87315926,186.66,186.63,2.64]
[1760775396124,8.87315926,186.65,186.63,2.64]
[1760775396321,2.84,186.67,186.63,2.64]
[1760775396521,4.16613275,186.66,186.62,6.63789911]
[1760775396728,12.6006589,186.7,186.63,7.4609]
[1760775396927,8.88184182,186.69,186.63,7.4609]
[1760775397125,8.88184182,186.68,186.66,1.81659911]
[1760775397329,4.9412589,186.7,186.66,1.81659911]
[1760775397330,4.9412589,186.72,186.66,4.45659911]
[1760775397530,8.88600317,186.71,186.67,2.64]
[1760775397734,4.16859032,186.7,186.68,4.45659911]
[1760775397930,2.84,186.73,186.68,4.45659911]
[1760775397931,2.84,186.73,186.69,2.64]
[1760775398128,8.88891304,186.72,186.69,2.64]
[1760775398434,8.89037294,186.71,186.69,2.64]
[1760775398627,4.16997933,186.7,186.69,2.64]
[1760775399031,2.84,186.73,186.69,2.64]
[1760775399234,8.89061007,186.72,186.69,2.64]
[1760775399528,4.17083975,186.71,186.69,2.64]
[1760775399734,2.84,186.73,186.69,2.64]
[1760775400034,8.89118882,186.72,186.69,2.64]
[1760775400233,4.17111353,186.71,186.69,2.64]
[1760775400433,2.84,186.73,186.69,2.64]
[1760775400628,8.89456263,186.72,186.69,2.64]
[1760775400828,4.17269993,186.71,186.69,2.64]
[1760775401033,4.17263299,186.7,186.66,4.8203]
[1760775401235,1.81659911,186.73,186.66,7.4503]
[1760775401236,4.17252701,186.69,186.66,7.4503]
[1760775401535,4.17230659,186.68,186.63,2.63]
[1760775401730,4.17230659,186.68,186.61,1.81659911]
[1760775401731,4.17195817,186.67,186.61,1.81659911]
[1760775401931,2.61,186.68,186.6,2.63]
[1760775402133,4.17262526,186.67,186.6,9.26839911]
[1760775402329,4.9412589,186.74,186.66,1.81659911]
[1760775402628,4.1742243,186.73,186.72,4.44659911]
[1760775403833,4.1742243,186.73,186.72,1.81659911]
[1760775404536,2.61,186.77,186.72,1.81659911]
[1760775404732,2.61,186.75,186.72,1.81659911]
[1760775404933,4.9412589,186.78,186.63,106.62]
[1760775404934,4.17170369,186.74,186.73,1.81659911]
[1760775406228,4.17170369,186.74,186.71,1.81659911]
[1760775406433,2.61,186.78,186.71,1.81659911]
[1760775406638,8.88606665,186.77,186.71,1.81659911]
[1760775406940,2.61,186.75,186.71,1.81659911]
[1760775407140,4.16882309,186.74,186.71,1.81659911]
[1760775407340,2.61,186.75,186.71,4.44659911]
[1760775408940,2.61,186.75,186.6,9.6435]
[1760775408941,9.24429911,186.77,186.69,1.81659911]
[1760775409134,8.87938814,186.76,186.69,1.81659911]
[1760775409336,4.16567533,186.75,186.68,2.63]
[1760775409529,7.4277,186.77,186.68,2.63]
[1760775409731,4.16434086,186.76,186.68,2.63]
[1760775409935,4.16434086,186.75,186.68,2.63]
[1760775410136,7.4277,186.77,186.68,2.63]
[1760775410337,4.16395371,186.76,186.68,2.63]
[1760775410537,4.16395371,186.75,186.68,2.63]
[1760775410739,7.4277,186.77,186.68,2.63]
[1760775411042,4.1632079,186.76,186.69,4.8194]
[1760775411337,4.8179,186.76,186.68,2.63]
[1760775411538,11.50464485,186.75,186.64,2.63]
[1760775411739,2.83810136,186.76,186.63,2.83810136]
[1760775411740,2.61,186.73,186.67,7.45]
[1760775413941,2.83810136,186.76,186.68,4.8196]
[1760775414142,7.4276,186.77,186.69,2.63]
[1760775414447,4.15918521,186.76,186.69,2.63]
[1760775414639,7.4276,186.77,186.69,2.63]
[1760775414834,4.15876077,186.76,186.69,2.63]
[1760775415039,7.4276,186.77,186.69,7.4494]
[1760775415339,4.15915786,186.76,186.69,7.4494]
[1760775415641,7.4276,186.77,186.69,7.4494]
[1760775415940,4.1580511,186.76,186.69,7.4494]
[1760775416147,7.4276,186.77,186.7,4.8192]
[1760775416339,4.1580511,186.76,186.7,4.8192]
[1760775416538,7.4276,186.77,186.7,4.8192]
[1760775416739,4.15719879,186.76,186.7,4.8192]
[1760775416947,7.4276,186.77,186.7,4.8192]
[1760775417149,4.15719879,186.76,186.7,4.8192]
[1760775417444,7.4276,186.77,186.7,4.8192]
[1760775417643,8.97448575,186.76,186.7,4.8192]
[1760775417846,4.8179,186.76,186.7,4.8192]
[1760775418437,2.61,186.71,186.63,2.63]
[1760775418649,5.44810136,186.67,186.63,2.63]
[1760775419038,5.44810136,186.67,186.63,7.451]
[1760775419238,2.83810136,186.64,186.63,7.451]
[1760775419743,2.83810136,186.64,186.63,4.821]
[1760775420043,2.83810136,186.64,186.56,2.63]
[1760775420433,2.83810136,186.64,186.61,4.8215]
[1760775420745,2.83810136,186.64,186.62,2.63]
[1760775420944,2.83810136,186.67,186.56,2.63]
[1760775421146,2.83810136,186.67,186.62,4.8212]
[1760775421340,2.61,186.71,186.63,2.63]
[1760775421535,2.61,186.76,186.67,5.46810136]
[1760775421740,4.15692101,186.75,186.67,10.28800136]
[1760775421940,2.61,186.76,186.67,7.4499]
[1760775422149,4.15684086,186.75,186.67,7.4499]
[1760775422348,2.61,186.76,186.67,7.4499]
[1760775422544,4.15672057,186.75,186.67,7.4499]
[1760775422747,10.26600136,186.76,186.67,7.4499]
[1760775422949,2.61,186.74,186.67,7.4499]
[1760775423551,2.61,186.74,186.67,2.63]
[1760775424149,2.61,186.74,186.67,7.45]
[1760775425050,4.8172,186.79,186.7,2.68]
[1760775425245,4.15784203,186.78,186.7,2.68]
[1760775425452,4.15784203,186.77,186.7,2.68]
[1760775425645,2.66,186.79,186.7,2.68]
[1760775425847,13.71086905,186.78,186.71,4.819]
[1760775426150,4.15867579,186.77,186.71,4.819]
[1760775426351,4.15963926,186.76,186.72,2.68]
[1760775426553,2.66,186.79,186.72,2.68]
[1760775426856,8.89554875,186.78,186.72,2.68]
[1760775427147,6.81964017,186.77,186.72,2.68]
[1760775427348,4.15964017,186.76,186.72,7.4986]
[1760775427550,2.66,186.77,186.72,7.4986]
[1760775427745,4.1606785,186.76,186.73,2.68]
[1760775428054,2.66,186.77,186.73,2.68]
[1760775428251,4.16072292,186.76,186.73,2.68]
[1760775428451,2.66,186.77,186.73,2.68]
[1760775428651,4.1630056,186.76,186.73,2.68]
[1760775428851,2.66,186.77,186.73,2.68]
[1760775429053,4.16298598,186.76,186.73,2.68]
[1760775429247,2.66,186.77,186.73,2.68]
[1760775429455,4.16456358,186.76,186.73,2.68]
[1760775429655,2.66,186.77,186.73,2.68]
[1760775429847,4.16461256,186.76,186.74,2.68]
[1760775430053,4.74158197,186.79,186.71,2.68]
[1760775430255,4.16504511,186.78,186.71,2.68]
[1760775430455,4.16504511,186.77,186.71,2.68]
[1760775430660,2.66,186.79,186.71,2.68]
[1760775430952,8.91103523,186.78,186.72,4.8187]
[1760775431149,2.6,186.76,186.72,4.8187]
[1760775431350,6.76696828,186.75,186.71,2.68]
[1760775431548,4.17024142,186.74,186.7,4.8193]
[1760775431757,2.6,186.74,186.7,7.5193]
[1760775431954,2.6,186.78,186.72,4.8186]
[1760775432157,4.17196567,186.77,186.69,2.7]
[1760775432346,4.17196567,186.76,186.69,2.7]
[1760775432552,2.6,186.78,186.72,2.7]
[1760775432748,4.17375112,186.77,186.71,2.83810136]
[1760775432947,9.7577589,186.81,186.71,2.83810136]
[1760775432948,6.77375112,186.76,186.72,2.7]
[1760775433156,4.17375112,186.75,186.72,2.7]
[1760775433357,2.6,186.76,186.72,2.7]
[1760775433657,4.17505816,186.75,186.72,2.7]
[1760775433857,2.6,186.76,186.72,2.7]
[1760775434157,4.17545797,186.75,186.72,2.7]
[1760775434357,2.6,186.76,186.72,2.7]
[1760775434557,4.17720722,186.75,186.72,2.7]
[1760775434753,4.9412589,186.79,186.68,2.83810136]
[1760775434954,20.63228624,186.78,186.68,5.53810136]
[1760775435156,8.93309453,186.77,186.68,5.53810136]
[1760775435359,2.6,186.75,186.68,2.7]
[1760775435657,8.93309453,186.74,186.68,2.7]
[1760775435859,8.93309453,186.73,186.66,2.7]
[1760775436060,4.17720951,186.72,186.7,2.7]
[1760775436254,2.6,186.75,186.7,2.7]
[1760775436454,11.54309219,186.74,186.7,2.7]
[1760775436754,8.94309219,186.73,186.7,2.7]
[1760775436949,4.181707,186.72,186.7,2.7]
[1760775437249,4.9412589,186.76,186.7,2.7]
[1760775437454,8.95426625,186.75,186.69,2.7]
[1760775437750,8.95426625,186.74,186.72,2.7]
[1760775437955,8.95426625,186.73,186.72,2.7]
[1760775438161,4.18703392,186.73,186.72,2.7]
[1760775439154,4.9412589,186.78,186.72,2.7]
[1760775439361,18.0699763,186.77,186.73,7.5183]
[1760775439553,18.0699763,186.77,186.73,4.8183]
[1760775439554,11.55666017,186.76,186.73,4.8183]
[1760775439760,8.95666017,186.75,186.73,4.8183]
[1760775439960,8.95666017,186.74,186.73,7.5183]
[1760775441458,8.95666017,186.74,186.73,4.8183]
[1760775442064,2.6,186.73,186.71,4.8189]
[1760775442265,8.95666017,186.72,186.71,4.8189]
[1760775443467,8.95666017,186.72,186.69,4.8194]
[1760775443668,2.6,186.7,186.69,4.8194]
[1760775443967,11.55666017,186.7,186.69,4.8194]
[1760775445467,11.55666017,186.7,186.67,4.82]
[1760775445468,2.6,186.69,186.67,4.82]
[1760775445766,2.6,186.72,186.64,50.21810136]
[1760775445968,8.96145594,186.71,186.64,50.21810136]
[1760775446159,8.96145594,186.7,186.64,50.21810136]
[1760775446360,4.1904339,186.69,186.65,2.7]
[1760775446562,2.6,186.72,186.65,2.7]
[1760775446764,8.96260618,186.71,186.65,2.7]
[1760775446960,4.9412589,186.75,186.69,2.7]
[1760775447164,8.96246822,186.74,186.71,2.7]
[1760775447366,8.96403674,186.73,186.7,2.83810136]
[1760775447560,4.19144035,186.72,186.71,7.519]
[1760775447970,2.6,186.76,186.71,2.7]
[1760775448170,8.95852585,186.75,186.71,2.7]
[1760775448371,8.95852585,186.74,186.71,2.7]
[1760775448570,4.18918563,186.73,186.71,2.7]
[1760775448771,4.18918563,186.72,186.71,7.519]
[1760775449172,4.18918563,186.72,186.71,4.819]
[1760775449567,11.55702071,186.72,186.67,2.7]
[1760775449771,4.18918563,186.71,186.67,2.7]
[1760775449975,2.6,186.72,186.67,2.7]
[1760775450171,4.18743765,186.71,186.67,2.7]
[1760775450373,2.6,186.72,186.67,2.7]
[1760775450574,4.18702664,186.71,186.67,2.7]
[1760775450873,2.6,186.72,186.67,2.7]
[1760775451070,4.1870221,186.71,186.7,4.8191]
[1760775452277,8.95304656,186.71,186.7,4.8191]
[1760775453478,11.55304656,186.71,186.7,4.8191]
[1760775453979,11.55304656,186.71,186.68,4.8197]
[1760775454280,4.1870221,186.7,186.68,4.8197]
[1760775454474,2.6,186.71,186.68,4.8197]
[1760775454780,4.18208147,186.7,186.68,4.8197]
[1760775455082,2.6,186.71,186.69,4.8193]
[1760775455275,4.18386825,186.7,186.69,4.8193]
[1760775459482,8.94453751,186.7,186.69,4.8193]
[1760775459781,4.18386825,186.7,186.69,10.35740136]
[1760775459975,2.6,186.74,186.7,4.8191]
[1760775460174,11.54531274,186.73,186.7,4.8191]
[1760775460375,8.94531274,186.72,186.7,4.8191]
[1760775460576,4.18388206,186.71,186.7,4.8191]
[1760775462471,11.56030946,186.71,186.7,4.8191]
[1760775462877,2.61,186.7,186.66,2.63]
[1760775463081,8.95006225,186.69,186.63,2.83810136]
[1760775463281,4.18388206,186.68,186.63,2.83810136]
[1760775463475,2.61,186.7,186.64,2.63]
[1760775463681,4.18721118,186.69,186.63,2.83810136]
[1760775463877,4.18721118,186.68,186.64,2.63]
[1760775464082,2.61,186.7,186.67,4.8198]
[1760775464280,8.95253726,186.69,186.67,4.8198]
[1760775464479,4.18626931,186.68,186.67,4.8198]
[1760775465576,4.18626931,186.68,186.67,7.4498]
[1760775469389,4.18626931,186.68,186.67,9.26641995]
[1760775470593,4.18626931,186.68,186.67,4.8198]
[1760775470786,11.57565071,186.68,186.67,4.8198]
[1760775471480,8.96565071,186.68,186.67,4.8198]
[1760775472991,2.61,186.67,186.61,2.63]
[1760775473290,2.61,186.65,186.6,1.81661995]
[1760775473684,7.5512589,186.7,186.63,2.63]
[1760775473891,8.96513205,186.69,186.63,2.63]
[1760775474191,4.18718046,186.68,186.63,2.63]
[1760775474487,2.61,186.7,186.63,2.63]
[1760775474691,8.9671545,186.69,186.63,2.63]
[1760775474892,4.18816033,186.68,186.63,2.63]
[1760775475195,2.61,186.7,186.64,1.81661995]
[1760775475490,11.57393496,186.69,186.65,2.63]
[1760775475693,4.18668248,186.68,186.65,2.63]
[1760775475891,2.61,186.69,186.65,2.63]
[1760775476195,4.18612763,186.68,186.67,4.82]
[1760775478798,6.75787885,186.73,186.68,4.8196]
[1760775479096,2.61,186.71,186.68,4.8196]
[1760775479290,11.57653787,186.7,186.68,4.8196]
[1760775479485,4.18793065,186.69,186.68,4.8196]
[1760775480489,11.5775848,186.69,186.68,4.8196]
[1760775482690,4.18793065,186.69,186.68,4.8196]
[1760775484395,4.18793065,186.69,186.66,4.8202]
[1760775484594,1.81661995,186.73,186.66,7.4502]
[1760775484595,8.97141421,186.68,186.66,7.4502]
[1760775484898,2.66,186.7,186.65,2.63]
[1760775485197,4.19127702,186.69,186.66,4.44661995]
[1760775485390,2.66,186.7,186.66,4.44661995]
[1760775485591,8.96523653,186.69,186.66,4.44661995]
[1760775485792,2.66,186.7,186.66,4.44661995]
[1760775485992,8.96570304,186.69,186.68,4.8197]
[1760775487097,11.62570304,186.69,186.68,4.8197]
[1760775487498,8.96570304,186.69,186.66,4.8203]
[1760775487694,2.66,186.67,186.66,4.8203]
[1760775487996,11.62570304,186.67,186.66,4.8203]
[1760775488296,4.18131622,186.67,186.66,7.4503]
[1760775488497,2.66,186.7,186.69,4.8195]
[1760775488692,11.62756584,186.7,186.69,4.8195]
[1760775492598,11.86418579,186.7,186.59,2.82]
[1760775492796,2.72,186.66,186.59,47.42]
[1760775492997,4.1822222,186.65,186.59,47.42]
[1760775493197,2.72,186.66,186.59,47.42]
[1760775493503,5.99853454,186.65,186.59,47.42]
[1760775493692,8.96441295,186.64,186.59,2.82]
[1760775493899,8.96441295,186.64,186.56,1.81661995]
[1760775493900,6.90073347,186.63,186.56,49.23661995]
[1760775494101,4.18073347,186.62,186.56,49.23661995]
[1760775494399,1.81661995,186.65,186.61,4.8215]
[1760775494604,9.03786044,186.64,186.61,4.8215]
[1760775494796,2.72,186.62,186.61,4.8215]
[1760775494992,6.97486489,186.62,186.61,4.8215]
[1760775495204,11.75701914,186.62,186.61,4.8215]
[1760775495400,6.97486489,186.62,186.61,4.8215]
[1760775495696,11.75525638,186.62,186.61,4.8215]
[1760775496604,2.72,186.6,186.59,4.8221]
[1760775497295,6.97086553,186.6,186.59,4.8221]
[1760775497494,2.72,186.63,186.6,4.8217]
[1760775497703,4.24922597,186.62,186.6,4.8217]
[1760775497902,2.72,186.63,186.6,4.8217]
[1760775498104,4.24902632,186.62,186.6,4.8217]
[1760775498303,2.72,186.63,186.6,4.8217]
[1760775498504,4.24777659,186.62,186.6,4.8217]
[1760775498703,2.72,186.63,186.6,4.8217]
[1760775499005,4.24794589,186.62,186.6,4.8217]
[1760775499208,2.72,186.63,186.61,4.8214]
[1760775499407,4.24784742,186.62,186.61,4.8214]
[1760775500307,2.72,186.63,186.61,4.8214]
[1760775501203,1.81661995,186.66,186.61,4.8214]
[1760775501508,4.24540309,186.65,186.61,2.82]
[1760775501810,4.53661995,186.68,186.61,2.82]
[1760775502005,8.98702517,186.67,186.61,2.82]
[1760775502202,2.72,186.65,186.57,2.82]
[1760775502401,2.72,186.63,186.56,1.81661995]
[1760775502600,8.98702517,186.62,186.56,1.81661995]
[1760775502912,4.24529006,186.61,186.6,1.81661995]
[1760775503109,2.72,186.65,186.61,2.82]
[1760775503309,4.24424493,186.64,186.61,2.82]
[1760775503500,2.72,186.67,186.61,4.8216]
[1760775503702,8.98359,186.66,186.61,4.8216]
[1760775503903,2.72,186.64,186.61,4.8216]
[1760775504106,4.24358477,186.63,186.61,4.8216]
[1760775504303,2.72,186.66,186.61,4.8216]
[1760775504504,4.24295637,186.65,186.64,1.81661995]
[1760775504708,7.6612589,186.69,186.64,1.81661995]
[1760775504709,2.72,186.69,186.65,2.82]
[1760775504905,4.24373095,186.68,186.66,1.81661995]
[1760775505108,2.72,186.69,186.66,1.81661995]
[1760775505303,4.24403882,186.68,186.66,1.81661995]
[1760775505504,4.9412589,186.73,186.66,1.81661995]
[1760775505704,8.9850957,186.72,186.7,1.81661995]
[1760775505907,4.24474915,186.71,186.7,1.81661995]
[1760775507009,6.96474915,186.71,186.7,6.63571995]
[1760775507411,11.70470604,186.71,186.7,6.63571995]
[1760775507605,11.70470604,186.71,186.7,4.8191]
[1760775509909,6.96474915,186.71,186.7,4.8191]
[1760775510717,2.72,186.7,186.68,6.63631995]
[1760775511012,4.24474915,186.69,186.68,6.63631995]
[1760775512911,6.96474915,186.69,186.68,6.63631995]
[1760775513416,2.72,186.68,186.66,6.63681995]
[1760775515315,2.72,186.71,186.66,6.63681995]
[1760775515616,11.74288524,186.7,186.66,9.45681995]
[1760775515812,4.28225067,186.69,186.68,4.63661995]
[1760775516113,4.9412589,186.76,186.68,1.81661995]
[1760775516415,4.9412589,186.76,186.71,4.63661995]
[1760775516416,9.02457938,186.75,186.71,4.63661995]
[1760775516615,4.9412589,186.76,186.71,4.63661995]
[1760775516616,9.02457938,186.74,186.71,4.63661995]
[1760775516810,4.28315376,186.73,186.71,4.63661995]
[1760775517115,4.28315376,186.72,186.71,9.45561995]
[1760775519414,7.6612589,186.77,186.73,7.6383]
[1760775519619,11.72839374,186.76,186.73,4.8183]
[1760775519817,9.00839374,186.75,186.73,4.8183]
[1760775520012,4.26857746,186.74,186.73,7.6383]
[1760775520722,2.72,186.76,186.73,7.6383]
[1760775520920,4.26731522,186.75,186.73,7.6383]
[1760775521216,2.72,186.76,186.73,7.6383]
[1760775521519,4.26769294,186.75,186.74,4.8181]
[1760775526319,2.72,186.76,186.74,4.8181]
[1760775529516,2.84,186.77,186.72,4.8187]
[1760775529719,4.26047273,186.76,186.72,4.8187]
[1760775529924,2.84,186.73,186.72,4.8187]
[1760775530422,2.84,186.73,186.7,4.8192]
[1760775530623,4.9412589,186.78,186.7,4.8192]
[1760775530624,1.81661995,186.74,186.7,4.8192]
[1760775530925,4.65661995,186.72,186.66,2.78]
[1760775531121,2.84,186.7,186.66,7.6002]
[1760775531422,2.84,186.72,186.61,113.87310521]
[1760775531724,2.84,186.7,186.62,2.78]
[1760775531924,4.2588285,186.69,186.62,2.78]
[1760775532126,2.84,186.7,186.62,2.78]
[1760775532320,4.25873253,186.69,186.65,4.8204]
[1760775532519,2.84,186.68,186.65,4.8204]
[1760775532720,2.84,186.74,186.67,2.83963895]
[1760775532922,4.25956733,186.73,186.67,2.83963895]
[1760775533128,2.84,186.74,186.68,2.78]
[1760775534124,2.84,186.74,186.7,7.5992]
[1760775534426,2.84,186.77,186.71,2.78]
[1760775534631,11.87876627,186.76,186.71,7.5989]
[1760775534921,4.25964732,186.75,186.68,2.83963895]
[1760775535127,4.25964732,186.74,186.68,2.83963895]
[1760775535330,4.19033618,186.78,186.69,2.78]
[1760775535629,9.03860835,186.77,186.69,2.78]
[1760775535828,9.03860835,186.76,186.69,2.78]
[1760775536129,4.25958604,186.75,186.72,7.5986]
[1760775536328,4.25958604,186.74,186.72,7.5986]
[1760775536628,7.7812589,186.79,186.72,7.5986]
[1760775536926,2.84,186.77,186.73,7.5983]
[1760775537126,4.25938942,186.76,186.73,7.5983]
[1760775537328,2.84,186.77,186.73,7.5983]
[1760775537629,2.84,186.77,186.74,4.8181]
[1760775539029,2.84,186.77,186.75,4.8179]
[1760775540427,2.84,186.8,186.75,4.8179]
[1760775540633,11.87689655,186.79,186.75,7.5979]
[1760775540834,7.09896945,186.78,186.75,4.8179]
[1760775541028,4.25896945,186.77,186.76,2.78]
[1760775541432,2.84,186.81,186.72,2.78]
[1760775541732,9.04125786,186.8,186.72,2.78]
[1760775541933,4.26108746,186.79,186.72,2.78]
[1760775542129,2.84,186.81,186.72,2.78]
[1760775542334,2.84,186.79,186.73,4.8183]
[1760775542530,2.84,186.77,186.73,4.8183]
[1760775542736,2.84,186.8,186.73,4.8183]
[1760775542934,2.84,186.78,186.73,4.8183]
[1760775543132,2.84,186.76,186.73,4.8183]
[1760775543633,4.26104378,186.75,186.71,4.819]
[1760775543835,2.84,186.75,186.71,4.819]
[1760775544035,2.84,186.79,186.69,2.78]
[1760775544239,9.0425431,186.78,186.69,2.78]
[1760775544435,2.84,186.79,186.69,2.78]
[1760775544436,9.0425431,186.77,186.69,2.78]
[1760775544632,4.26164781,186.76,186.69,2.78]
[1760775544940,2.79,186.74,186.66,2.66]
[1760775546040,2.79,186.74,186.7,4.8191]
[1760775546437,2.79,186.77,186.7,4.8191]
[1760775546637,4.95163252,186.78,186.7,4.8191]
[1760775546638,9.03400996,186.76,186.7,4.8191]
[1760775546838,2.79,186.74,186.7,4.8191]
[1760775547038,2.79,186.72,186.7,4.8191]
[1760775547342,2.83963895,186.79,186.68,4.8197]
[1760775547343,7.79127147,186.76,186.68,4.8197]
[1760775547541,20.97550117,186.75,186.66,2.66]
[1760775547742,2.79,186.73,186.67,4.8199]
[1760775547943,11.82767291,186.72,186.67,7.4799]
[1760775548239,4.25157589,186.71,186.67,4.8199]
[1760775548443,2.79,186.72,186.68,2.66]
[1760775548643,4.25121899,186.71,186.68,7.4797]
[1760775548838,2.79,186.72,186.68,7.4797]
[1760775549040,4.25280549,186.71,186.68,7.4797]
[1760775549235,2.79,186.72,186.69,4.8194]
[1760775549445,9.04417569,186.71,186.69,4.8194]
[1760775549644,4.25456526,186.7,186.69,4.8194]
[1760775550341,4.2550997,186.7,186.69,7.4794]
[1760775551242,4.2550997,186.7,186.69,4.8194]
[1760775551541,4.2550997,186.7,186.62,47.43963895]
[1760775551542,9.04446221,186.7,186.64,2.65]
[1760775551747,9.04446221,186.69,186.63,2.65]
[1760775551945,9.04446221,186.68,186.63,2.65]
[1760775552147,4.25380122,186.67,186.62,47.25]
[1760775552346,2.72,186.67,186.63,2.65]
[1760775552546,4.25280012,186.66,186.63,2.65]
[1760775552742,2.72,186.67,186.63,2.65]
[1760775552944,4.25297264,186.66,186.64,4.8207]
[1760775553241,4.95163252,186.7,186.64,4.8207]
[1760775553448,2.72,186.68,186.64,4.8207]
[1760775553641,2.72,186.66,186.64,4.8207]
[1760775553846,2.72,186.69,186.62,49.4212]
[1760775554142,9.03946624,186.68,186.62,44.6]
[1760775554349,2.72,186.72,186.62,44.6]
[1760775554350,7.67163252,186.72,186.66,7.4702]
[1760775554541,15.93852651,186.71,186.67,2.65]